bitfinex/quotes_BTCUSD_20251230
["timestamp","ask_amount","ask_price","bid_price","bid_amount"]
[1767095617570,0.02454227,87822.0,87809.0,0.05003468]
[1767095617831,0.0113864,87824.0,87815.0,0.000549]
[1767095618037,0.0113864,87824.0,87810.0,0.51416788]
[1767095618038,0.03588624,87824.0,87810.0,0.5255561]
[1767095618341,0.01138653,87823.0,87810.0,0.51416788]
[1767095618538,0.0113864,87824.0,87810.0,0.51416788]
[1767095618941,0.01138653,87823.0,87810.0,0.51416788]
[1767095619803,0.01134439,87823.0,87810.0,0.51416788]
[1767095619999,0.01138666,87822.0,87810.0,0.51416788]
[1767095620305,0.01138679,87821.0,87810.0,0.51416788]
[1767095620503,0.01138692,87820.0,87810.0,0.51416788]
[1767095620707,0.06832131,87821.0,87810.0,0.51416788]
[1767095620708,0.01138679,87821.0,87810.0,0.51416788]
[1767095621291,0.06832061,87822.0,87810.0,0.51416788]
[1767095621719,0.01138679,87821.0,87810.0,0.51416788]
[1767095621919,0.06832061,87822.0,87810.0,0.51416788]
[1767095622384,0.01138679,87821.0,87810.0,0.51416788]
[1767095622771,0.01138679,87821.0,87809.0,0.05003468]
[1767095622880,0.01138731,87817.0,87806.0,0.0114]
[1767095623087,0.01138705,87819.0,87809.0,0.05003468]
[1767095623326,0.01138705,87819.0,87806.0,0.0114]
[1767095623327,0.01138718,87818.0,87810.0,0.05003468]
[1767095623525,0.01138718,87818.0,87806.0,0.0114]
[1767095623893,0.01138731,87817.0,87809.0,0.05003468]
[1767095624109,0.05693439,87821.0,87809.0,0.05003468]
[1767095624110,0.01138705,87819.0,87809.0,0.05003468]
[1767095624310,0.01138692,87820.0,87809.0,0.56420256]
[1767095624604,0.01138718,87818.0,87809.0,0.05003468]
[1767095624828,0.01138692,87820.0,87809.0,0.05003468]
[1767095625872,0.01138705,87819.0,87809.0,0.05003468]
[1767095626173,0.01138718,87818.0,87809.0,0.05003468]
[1767095627273,0.01138731,87817.0,87809.0,0.05003468]
[1767095627819,0.01138718,87818.0,87809.0,0.05003468]
[1767095628242,0.01138705,87819.0,87809.0,0.05003468]
[1767095629642,0.01068134,87818.0,87809.0,0.05003468]
[1767095629840,0.01068134,87817.0,87809.0,0.05003468]
[1767095630069,0.01068134,87816.0,87809.0,0.05003468]
[1767095630270,0.01068134,87815.0,87809.0,0.05003468]
[1767095630484,0.01068134,87814.0,87809.0,0.05003468]
[1767095630678,0.01068134,87813.0,87809.0,0.05003468]
[1767095630883,0.01138718,87818.0,87809.0,0.05003468]
[1767095631080,0.01068124,87817.0,87809.0,0.05003468]
[1767095631264,0.01068124,87816.0,87809.0,0.05003468]
[1767095631495,0.01068124,87815.0,87809.0,0.05003468]
[1767095631660,0.01068124,87814.0,87809.0,0.05003468]
[1767095631906,0.01068124,87813.0,87809.0,0.05003468]
[1767095632077,0.02278705,87819.0,87809.0,0.05003468]
[1767095632251,0.01068116,87818.0,87809.0,0.05003468]
[1767095632449,0.02278705,87819.0,87809.0,0.05003468]
[1767095632450,0.01068116,87817.0,87809.0,0.05003468]
[1767095632671,0.01068116,87816.0,87809.0,0.05003468]
[1767095632966,0.01138718,87818.0,87809.0,0.05003468]
[1767095632967,0.01068116,87815.0,87809.0,0.05003468]
[1767095633171,0.01068116,87814.0,87809.0,0.05003468]
[1767095633388,0.01068116,87813.0,87809.0,0.05003468]
[1767095633559,0.02278705,87819.0,87809.0,0.05003468]
[1767095633763,0.01068225,87818.0,87809.0,0.05003468]
[1767095634075,0.01068225,87817.0,87809.0,0.05003468]
[1767095634290,0.01068225,87816.0,87809.0,0.05003468]
[1767095634491,0.01068225,87815.0,87809.0,0.05003468]
[1767095634696,0.01068225,87814.0,87809.0,0.05003468]
[1767095634856,0.01068225,87813.0,87809.0,0.05003468]
[1767095635062,0.01138718,87818.0,87809.0,0.05003468]
[1767095635374,0.02207032,87817.0,87806.0,0.0114]
[1767095635578,0.00055,87809.0,87806.0,0.0114]
[1767095635784,0.0113877,87814.0,87806.0,0.0114]
[1767095635982,0.01068423,87813.0,87806.0,0.0114]
[1767095636298,0.01068423,87812.0,87806.0,0.0114]
[1767095636542,0.01068423,87811.0,87806.0,0.0114]
[1767095636710,0.01068423,87810.0,87806.0,0.0114]
[1767095636917,0.01138783,87813.0,87806.0,0.0114]
[1767095637117,0.01068507,87812.0,87806.0,0.0114]
[1767095637432,0.01068507,87811.0,87806.0,0.0114]
[1767095637732,0.01068507,87810.0,87806.0,0.0114]
[1767095637893,0.01138796,87812.0,87806.0,0.0114]
[1767095638095,0.01138822,87810.0,87806.0,0.0114]
[1767095638298,0.01055562,87809.0,87806.0,0.0114]
[1767095638497,0.01138809,87811.0,87806.0,0.0114]
[1767095638728,0.06832906,87811.0,87806.0,0.0114]
[1767095638900,0.01138835,87809.0,87806.0,0.01085]
[1767095639100,0.01138822,87810.0,87806.0,0.01085]
[1767095639304,0.0114,87811.0,87802.0,0.0002078]
[1767095639522,0.01138835,87809.0,87802.0,0.0002078]
[1767095639702,0.01138822,87810.0,87802.0,0.0002078]
[1767095639902,0.02278809,87811.0,87802.0,0.0002078]
[1767095639903,0.0114,87811.0,87802.0,0.0002078]
[1767095641592,0.010301,87811.0,87802.0,0.0002078]
[1767095641796,0.01138627,87825.0,87809.0,0.05003468]
[1767095642001,0.0114,87824.0,87809.0,0.06142303]
[1767095642200,0.0114,87824.0,87811.0,0.01138809]
[1767095642448,0.0114,87825.0,87812.0,0.01138796]
[1767095642651,0.0114,87825.0,87811.0,0.01138809]
[1767095642855,0.0114,87825.0,87808.0,0.0114]
[1767095642856,0.01138679,87821.0,87808.0,0.0114]
[1767095643240,0.01138692,87820.0,87808.0,0.0114]
[1767095643409,0.01138718,87818.0,87808.0,0.0114]
[1767095643874,0.01138705,87819.0,87808.0,0.0114]
[1767095644500,0.01138718,87818.0,87808.0,0.0114]
[1767095644894,0.01138731,87817.0,87808.0,0.0114]
[1767095646101,0.01138744,87816.0,87808.0,0.0114]
[1767095646270,0.01138757,87815.0,87808.0,0.0114]
[1767095646671,0.01138757,87815.0,87802.0,0.0116078]
[1767095646672,0.0113877,87814.0,87802.0,0.0116078]
[1767095646907,0.01138783,87813.0,87802.0,0.0116078]
[1767095647110,0.01138796,87812.0,87802.0,0.0116078]
[1767095648537,0.01138783,87813.0,87802.0,0.0116078]
[1767095648740,0.01138796,87812.0,87802.0,0.0116078]
[1767095649118,0.01138809,87811.0,87802.0,0.0116078]
[1767095649570,0.01138822,87810.0,87802.0,0.0116078]
[1767095649706,0.01138809,87811.0,87802.0,0.0116078]
[1767095649903,0.01138835,87809.0,87802.0,0.0116078]
[1767095650441,0.01068194,87808.0,87802.0,0.0116078]
[1767095650650,0.01138835,87809.0,87800.0,0.0029]
[1767095650651,0.01068194,87807.0,87800.0,0.0029]
[1767095650821,0.01068194,87806.0,87800.0,0.0029]
[1767095651023,0.07972919,87811.0,87800.0,0.0029]
[1767095651242,0.02206965,87810.0,87800.0,0.0029]
[1767095651441,0.01068143,87809.0,87800.0,0.0029]
[1767095651685,0.01068143,87808.0,87800.0,0.0029]
[1767095651875,0.01068143,87807.0,87800.0,0.0029]
[1767095652067,0.02278809,87811.0,87800.0,0.0029]
[1767095652261,0.02206901,87810.0,87800.0,0.0029]
[1767095652461,0.01068079,87809.0,87800.0,0.0029]
[1767095652642,0.02206914,87809.0,87800.0,0.0029]
[1767095652850,0.01068079,87808.0,87800.0,0.0029]
[1767095653424,0.01068079,87807.0,87800.0,0.0029]
[1767095653574,0.02206953,87806.0,87800.0,0.0029]
[1767095653767,0.01068079,87805.0,87800.0,0.0029]
[1767095653949,0.01138874,87806.0,87800.0,0.0029]
[1767095654156,0.01068063,87805.0,87800.0,0.0029]
[1767095654358,0.01138874,87806.0,87800.0,0.0029]
[1767095654657,0.01067956,87805.0,87800.0,0.0029]
[1767095654857,0.01138861,87807.0,87800.0,0.0029]
[1767095655079,0.01067956,87806.0,87800.0,0.0029]
[1767095655289,0.02206843,87805.0,87800.0,0.0029]
[1767095655492,0.01138965,87799.0,87796.0,1e-08]
[1767095655703,0.01138939,87801.0,87796.0,1e-08]
[1767095655704,0.01067956,87798.0,87796.0,1e-08]
[1767095655915,0.01138952,87800.0,87796.0,1e-08]
[1767095656094,0.0106797,87799.0,87796.0,1e-08]
[1767095656429,0.01138939,87801.0,87796.0,1e-08]
[1767095656588,0.01067629,87800.0,87796.0,1e-08]
[1767095656817,0.01138926,87802.0,87793.0,0.000147]
[1767095656818,0.05003468,87798.0,87793.0,0.000147]
[1767095657023,0.01138991,87797.0,87793.0,0.000147]
[1767095657623,0.01139017,87795.0,87792.0,0.00024186]
[1767095657823,0.01139017,87795.0,87792.0,8.6e-07]
[1767095658026,0.06834136,87795.0,87792.0,8.6e-07]
[1767095658271,0.05695214,87793.0,87792.0,8.6e-07]
[1767095658943,0.06834136,87795.0,87792.0,8.6e-07]
[1767095659754,0.0114,87797.0,87795.0,0.000388]
[1767095660181,0.05003468,87799.0,87797.0,0.00055]
[1767095660518,0.0114,87798.0,87792.0,8.6e-07]
[1767095661006,0.011012,87798.0,87792.0,8.6e-07]
[1767095664456,0.02240178,87798.0,87792.0,8.6e-07]
[1767095664727,0.01138991,87797.0,87792.0,8.6e-07]
[1767095664953,0.01139004,87796.0,87792.0,8.6e-07]
[1767095665116,0.01138991,87797.0,87792.0,8.6e-07]
[1767095665528,0.01139004,87796.0,87792.0,8.6e-07]
[1767095665730,0.01138991,87797.0,87792.0,8.6e-07]
[1767095665932,0.01139004,87796.0,87792.0,8.6e-07]
[1767095666111,0.01138991,87797.0,87792.0,8.6e-07]
[1767095666313,0.02240178,87798.0,87792.0,8.6e-07]
[1767095667254,0.01138991,87797.0,87792.0,8.6e-07]
[1767095667667,0.02240178,87798.0,87792.0,8.6e-07]
[1767095668179,0.01139004,87796.0,87792.0,8.6e-07]
[1767095668363,0.01139017,87795.0,87792.0,8.6e-07]
[1767095669033,0.01139004,87796.0,87792.0,8.6e-07]
[1767095669228,0.01139017,87795.0,87792.0,8.6e-07]
[1767095670372,0.01139004,87796.0,87792.0,8.6e-07]
[1767095670550,0.01139017,87795.0,87792.0,8.6e-07]
[1767095671507,0.01139017,87795.0,87744.0,0.4558691]
[1767095671508,0.01139107,87788.0,87776.0,0.000147]
[1767095671688,0.01139172,87783.0,87776.0,0.000147]
[1767095671830,0.01139133,87786.0,87776.0,0.000147]
[1767095672031,0.05003468,87785.0,87776.0,0.000147]
[1767095673013,5.285e-05,87788.0,87778.0,0.01139237]
[1767095673288,0.01139004,87796.0,87778.0,0.01139237]
[1767095673289,0.01139004,87796.0,87781.0,0.01139198]
[1767095673432,0.0219646,87795.0,87782.0,0.01139185]
[1767095673635,0.10698403,87799.0,87784.0,0.01139159]
[1767095673636,0.0114,87794.0,87784.0,0.01139159]
[1767095673852,0.0114,87794.0,87780.0,0.5825435]
[1767095674053,0.0114,87794.0,87782.0,0.01139185]
[1767095674256,0.0227903,87794.0,87780.0,0.01139211]
[1767095674484,0.0114,87794.0,87781.0,0.01139198]
[1767095674880,0.0114,87794.0,87779.0,0.06835299]
[1767095675098,0.0227903,87794.0,87779.0,0.01149972]
[1767095675255,0.0227903,87794.0,87779.0,0.00010748]
[1767095675256,0.01139055,87792.0,87779.0,0.00010748]
[1767095675461,0.01139081,87790.0,87779.0,0.00010748]
[1767095675774,0.01139055,87792.0,87779.0,0.00010748]
[1767095675974,0.01139068,87791.0,87779.0,0.00010748]
[1767095676174,0.01139081,87790.0,87779.0,0.00010748]
[1767095676824,0.01139068,87791.0,87779.0,0.00010748]
[1767095677167,0.01139055,87792.0,87779.0,0.00010748]
[1767095677366,0.01139068,87791.0,87779.0,0.00010748]
[1767095678366,0.01139081,87790.0,87779.0,0.00010748]
[1767095678570,0.01139055,87792.0,87779.0,0.00010748]
[1767095678975,0.01139081,87790.0,87779.0,0.00010748]
[1767095679776,0.01139094,87789.0,87779.0,0.00010748]
[1767095680272,0.0113912,87787.0,87779.0,0.00010748]
[1767095680472,0.0114,87787.0,87779.0,0.00010748]
[1767095680802,0.0114,87787.0,87779.0,6.504e-05]
[1767095683009,0.0227912,87787.0,87779.0,6.504e-05]
[1767095683215,0.0114,87787.0,87779.0,6.504e-05]
[1767095684075,0.0227912,87787.0,87779.0,6.504e-05]
[1767095685483,0.02206527,87786.0,87779.0,6.504e-05]
[1767095685679,0.0220654,87785.0,87779.0,6.504e-05]
[1767095685886,0.01067394,87784.0,87779.0,6.504e-05]
[1767095686139,0.02206566,87783.0,87779.0,6.504e-05]
[1767095686365,0.01067394,87782.0,87779.0,4e-08]
[1767095686570,0.01067394,87781.0,87779.0,4e-08]
[1767095686707,0.01067394,87781.0,87769.0,0.0114]
[1767095686708,0.01139185,87782.0,87769.0,0.01003771]
[1767095687045,0.01139185,87782.0,87769.0,0.01009056]
[1767095687046,0.01067431,87781.0,87769.0,0.01009056]
[1767095687344,0.01139185,87782.0,87769.0,0.01009056]
[1767095687639,0.51466822,87780.0,87769.0,0.01009056]
[1767095687786,0.01139172,87783.0,87770.0,0.51466822]
[1767095687994,0.02206584,87782.0,87769.0,0.01009056]
[1767095688191,0.01067399,87781.0,87769.0,0.01009056]
[1767095688396,0.52534147,87780.0,87769.0,0.01009056]
[1767095688594,0.01139198,87781.0,87769.0,0.01009056]
[1767095688813,0.01067334,87780.0,87769.0,0.01009056]
[1767095689032,0.01139185,87782.0,87769.0,0.01009056]
[1767095689210,0.02206443,87781.0,87769.0,0.01009056]
[1767095689442,0.01139224,87779.0,87769.0,0.01009056]
[1767095689833,0.06835209,87781.0,87779.0,6.6e-05]
[1767095689834,0.01139198,87781.0,87779.0,6.6e-05]
[1767095690039,0.01067245,87780.0,87769.0,0.01009056]
[1767095690239,0.01139185,87782.0,87769.0,0.01009056]
[1767095690414,0.02206389,87781.0,87769.0,0.01009056]
[1767095690613,0.01067191,87780.0,87769.0,0.01009056]
[1767095690981,0.01139198,87781.0,87770.0,0.51466822]
[1767095691251,0.01067191,87780.0,87770.0,0.51466822]
[1767095691396,0.01139159,87784.0,87769.0,0.01009056]
[1767095691603,0.06834842,87786.0,87769.0,0.01009056]
[1767095691604,0.0114,87786.0,87774.0,0.51466822]
[1767095691838,0.0114,87786.0,87769.0,0.0214841]
[1767095691839,0.0114,87786.0,87773.0,0.01139302]
[1767095692040,0.0114,87786.0,87772.0,0.01139315]
[1767095692243,0.01139094,87789.0,87776.0,0.51466822]
[1767095692404,0.01139094,87789.0,87769.0,0.0214841]
[1767095692405,0.06834683,87788.0,87769.0,0.0214841]
[1767095692620,0.001099,87776.0,87770.0,0.57163497]
[1767095692942,0.01139146,87785.0,87771.0,0.01139328]
[1767095693118,0.01139146,87785.0,87770.0,0.01139341]
[1767095693735,0.01139159,87784.0,87770.0,0.01139341]
[1767095694038,0.01139159,87784.0,87770.0,0.52606163]
[1767095694555,0.01139159,87784.0,87769.0,0.0214841]
[1767095694715,0.01139146,87785.0,87771.0,0.01139328]
[1767095694936,0.01139159,87784.0,87769.0,0.0214841]
[1767095695289,0.01139146,87785.0,87771.0,0.01139328]
[1767095695460,0.01139133,87786.0,87772.0,0.01139315]
[1767095695644,0.01139146,87785.0,87771.0,0.01139328]
[1767095695850,0.01139146,87785.0,87770.0,0.58302825]
[1767095696072,0.01139146,87785.0,87771.0,0.01139328]
[1767095696466,0.01139159,87784.0,87769.0,0.0214841]
[1767095696646,0.01139159,87784.0,87770.0,0.52606163]
[1767095697585,0.01139159,87784.0,87771.0,0.01139328]
[1767095697788,0.01139159,87784.0,87770.0,0.52606163]
[1767095698140,0.51466822,87780.0,87769.0,0.01009056]
[1767095698720,0.52606033,87780.0,87769.0,0.01009056]
[1767095699123,0.51466822,87780.0,87769.0,0.01009056]
[1767095700689,0.51466822,87780.0,87769.0,0.0214841]
[1767095700891,0.51466822,87780.0,87769.0,0.00954156]
[1767095701161,0.01139237,87778.0,87769.0,0.00954156]
[1767095701296,0.01139276,87775.0,87763.0,0.0001508]
[1767095701498,0.00010737,87775.0,87764.0,0.0114]
[1767095701697,0.51466822,87774.0,87764.0,0.0114]
[1767095702305,0.00010737,87775.0,87764.0,0.0114]
[1767095702539,0.00010737,87775.0,87764.0,0.02279419]
[1767095702732,0.00010737,87775.0,87765.0,0.01139406]
[1767095702936,0.00010737,87775.0,87764.0,0.02279419]
[1767095703509,0.00010737,87775.0,87766.0,0.01139393]
[1767095703714,0.01154097,87795.0,87777.0,0.0113925]
[1767095703935,0.01067957,87794.0,87778.0,0.0114]
[1767095704151,0.01067957,87793.0,87780.0,0.51466822]
[1767095704359,0.01067957,87792.0,87780.0,0.51466822]
[1767095704571,0.01067957,87791.0,87782.0,0.05695906]
[1767095704775,0.01067957,87790.0,87781.0,0.01139198]
[1767095704929,0.01067957,87789.0,87780.0,0.01139211]
[1767095705131,0.01067957,87788.0,87781.0,0.01139198]
[1767095705339,0.01067957,87787.0,87779.0,0.01139224]
[1767095705556,0.01067957,87786.0,87781.0,0.01139198]
[1767095705737,0.01154097,87795.0,87780.0,0.01139211]
[1767095705935,0.01068052,87794.0,87780.0,0.01139211]
[1767095706133,0.01068052,87793.0,87780.0,0.01139211]
[1767095706499,0.01068052,87792.0,87781.0,0.01139198]
[1767095706678,0.01068052,87791.0,87781.0,0.01139198]
[1767095706978,0.01068052,87790.0,87780.0,0.01139211]
[1767095707214,0.01068052,87789.0,87780.0,0.52606033]
[1767095707421,0.01068052,87788.0,87779.0,0.01139224]
[1767095707576,0.01068052,87787.0,87782.0,0.01139185]
[1767095707767,0.0001508,87795.0,87783.0,0.01139172]
[1767095707968,0.0001508,87795.0,87784.0,0.01139159]
[1767095708189,0.0001508,87795.0,87786.0,0.01139133]
[1767095708405,0.0001508,87795.0,87785.0,0.01139146]
[1767095708730,0.0001508,87795.0,87783.0,0.01139172]
[1767095708936,0.0001508,87795.0,87756.0,0.0820431]
[1767095708937,0.000549,87783.0,87775.0,0.01139276]
[1767095709141,0.000549,87783.0,87771.0,0.01139328]
[1767095709297,0.000549,87783.0,87767.0,0.0113938]
[1767095709298,0.01139172,87783.0,87767.0,0.0113938]
[1767095709497,0.51466822,87780.0,87769.0,0.0114]
[1767095709738,0.52606033,87780.0,87769.0,0.0114]
[1767095710338,0.01139224,87779.0,87769.0,0.0114]
[1767095710664,0.52606033,87780.0,87769.0,0.0114]
[1767095711043,0.01139224,87779.0,87769.0,0.0114]
[1767095711201,0.01139224,87779.0,87769.0,0.01135711]
[1767095711739,0.01139237,87778.0,87769.0,0.01135711]
[1767095712111,0.01139224,87779.0,87769.0,0.01135711]
[1767095712318,0.0113925,87777.0,87769.0,0.01080811]
[1767095713370,0.01139237,87778.0,87769.0,0.01080811]
[1767095713573,0.01139237,87778.0,87769.0,0.0107643]
[1767095713791,0.0113925,87777.0,87769.0,0.0107643]
[1767095714034,0.01139237,87778.0,87769.0,0.0107643]
[1767095714240,0.0113925,87777.0,87769.0,0.0107643]
[1767095714454,0.0113925,87777.0,87763.0,0.0001508]
[1767095714455,0.01139289,87774.0,87763.0,0.0001508]
[1767095714654,0.05696884,87768.0,87763.0,0.0001508]
[1767095714805,0.01139354,87769.0,87760.0,0.0001]
[1767095714806,0.01139393,87766.0,87760.0,0.0001]
[1767095715005,0.01139354,87769.0,87760.0,0.0001]
[1767095715209,0.51466822,87770.0,87760.0,0.0001]
[1767095715529,0.52606163,87770.0,87760.0,0.0001]
[1767095715682,0.51466822,87770.0,87760.0,0.0001]
[1767095716223,0.01139341,87770.0,87760.0,0.0001]
[1767095716376,0.01139328,87771.0,87760.0,0.51476822]
[1767095716570,0.01139341,87770.0,87760.0,0.0001]
[1767095716776,0.52606163,87770.0,87760.0,0.0001]
[1767095717100,0.06836134,87769.0,87760.0,0.0001]
[1767095717295,0.0113938,87767.0,87760.0,0.0001]
[1767095717496,0.01139393,87766.0,87760.0,0.0001]
[1767095717725,0.01139367,87768.0,87760.0,0.0001]
[1767095718061,0.0113938,87767.0,87760.0,0.0001]
[1767095718201,0.01139367,87768.0,87760.0,0.0001]
[1767095718566,0.05003468,87765.0,87760.0,0.0001]
[1767095721287,0.04988568,87765.0,87760.0,0.0001]
[1767095723176,0.06127974,87765.0,87760.0,0.0001]
[1767095723339,0.01139393,87766.0,87760.0,0.0001]
[1767095723542,0.05697161,87763.0,87760.0,0.0001]
[1767095723767,0.05697161,87763.0,87754.0,0.0001508]
[1767095723768,0.01139458,87761.0,87754.0,0.0001508]
[1767095723940,0.0113951,87757.0,87754.0,0.0001508]
[1767095724145,0.01139458,87761.0,87754.0,0.0001508]
[1767095724341,0.01139471,87760.0,87754.0,0.0001508]
[1767095724539,0.01139432,87763.0,87754.0,0.0001508]
[1767095724980,0.52606241,87764.0,87754.0,0.0001508]
[1767095725164,0.01139445,87762.0,87754.0,0.0001508]
[1767095725365,0.01139458,87761.0,87754.0,0.0001508]
[1767095725767,0.01139458,87761.0,87745.0,0.01154746]
[1767095725768,0.00015,87754.0,87745.0,0.01154746]
[1767095725969,0.05907541,87760.0,87745.0,0.01154746]
[1767095725970,0.01139484,87759.0,87745.0,0.01154746]
[1767095726750,0.01139406,87765.0,87759.0,0.00065]
[1767095727012,0.02206097,87764.0,87759.0,0.00065]
[1767095727184,0.05003468,87772.0,87749.0,0.52606436]
[1767095727185,0.0114,87765.0,87757.0,0.0113951]
[1767095727386,0.01139328,87771.0,87754.0,0.01139549]
[1767095727387,0.0114,87766.0,87754.0,0.01139549]
[1767095727587,0.0114,87766.0,87755.0,0.01139536]
[1767095727911,0.52606822,87770.0,87766.0,0.00065]
[1767095728059,0.01065893,87769.0,87766.0,0.00065]
[1767095728413,0.01139354,87769.0,87755.0,0.01139536]
[1767095728575,0.01139354,87769.0,87756.0,0.01139523]
[1767095728777,0.0114,87770.0,87744.0,0.01139679]
[1767095729092,0.01065863,87769.0,87743.0,0.22793595]
[1767095729290,0.01139367,87768.0,87753.0,0.05697754]
[1767095729475,0.02279341,87770.0,87755.0,0.01139536]
[1767095729679,0.01065838,87769.0,87757.0,0.0113951]
[1767095729877,0.02283354,87769.0,87754.0,0.01139549]
[1767095730080,0.01065843,87768.0,87755.0,0.01139536]
[1767095730395,0.02283354,87769.0,87755.0,0.01139536]
[1767095730396,0.01144,87769.0,87756.0,0.01139523]
[1767095730596,0.01065847,87768.0,87755.0,0.01139536]
[1767095730909,0.01144,87769.0,87756.0,0.01139523]
[1767095731126,0.01065847,87768.0,87756.0,0.01139523]
[1767095731464,0.02283354,87769.0,87755.0,0.01139536]
[1767095731631,0.0106583,87768.0,87755.0,0.01139536]
[1767095731851,0.02283354,87769.0,87755.0,0.01139536]
[1767095732060,0.0106583,87768.0,87755.0,0.01139536]
[1767095732262,0.02283354,87769.0,87755.0,0.01139536]
[1767095732486,0.01065792,87768.0,87755.0,0.01139536]
[1767095732704,0.02283354,87769.0,87755.0,0.01139536]
[1767095732936,0.02209792,87768.0,87755.0,0.01139536]
[1767095733136,0.01144,87768.0,87755.0,0.01139536]
[1767095733349,0.02283367,87768.0,87754.0,0.01139549]
[1767095733563,0.01144,87768.0,87755.0,0.01139536]
[1767095733774,0.01144,87768.0,87756.0,0.01139523]
[1767095734194,0.01144,87768.0,87753.0,0.01139562]
[1767095734345,0.02283367,87768.0,87754.0,0.01139549]
[1767095735160,0.0113938,87767.0,87753.0,0.01139562]
[1767095735295,0.0113938,87767.0,87752.0,0.01139575]
[1767095735493,0.02283367,87768.0,87754.0,0.01139549]
[1767095735696,0.0113938,87767.0,87754.0,0.01139549]
[1767095735924,0.02279367,87768.0,87754.0,0.01139549]
[1767095736132,0.01066238,87767.0,87754.0,0.01139549]
[1767095736481,0.0114,87768.0,87754.0,0.01139549]
[1767095736649,0.01066238,87767.0,87754.0,0.01139549]
[1767095736824,0.0113938,87767.0,87753.0,0.01139562]
[1767095737029,0.02279367,87768.0,87754.0,0.01139549]
[1767095737238,0.02205618,87767.0,87754.0,0.01139549]
[1767095737461,0.01066238,87766.0,87754.0,0.01139549]
[1767095738048,0.0114,87768.0,87754.0,0.01139549]
[1767095738049,0.0114,87768.0,87755.0,0.01139536]
[1767095738234,0.01066851,87767.0,87756.0,0.01139523]
[1767095738440,0.0114,87768.0,87757.0,0.0113951]
[1767095738638,0.0114,87768.0,87758.0,0.01139497]
[1767095738851,0.0001692,87773.0,87763.0,0.01139432]
[1767095739092,0.01139224,87779.0,87766.0,0.01139393]
[1767095739093,0.0114,87775.0,87766.0,0.01139393]
[1767095739291,0.0114,87775.0,87763.0,0.06836549]
[1767095739292,0.0114734,87775.0,87764.0,0.01139419]
[1767095739496,0.0114734,87775.0,87765.0,0.01139406]
[1767095739954,7.34e-05,87775.0,87767.0,0.0113938]
[1767095740150,4e-07,87775.0,87768.0,0.01139367]
[1767095740640,4e-07,87775.0,87773.0,0.05003468]
[1767095740761,0.01139094,87789.0,87773.0,0.05003468]
[1767095740762,0.01139017,87795.0,87780.0,0.01139211]
[1767095740959,0.01139017,87795.0,87781.0,0.01139198]
[1767095741162,0.0113903,87794.0,87781.0,0.0114]
[1767095741672,0.05695078,87796.0,87781.0,0.0114]
[1767095741873,0.0114,87797.0,87781.0,0.0114]
[1767095742076,0.0114,87797.0,87787.0,0.05003468]
[1767095742291,0.0114,87797.0,87783.0,0.06834996]
[1767095742502,0.06849236,87801.0,87783.0,0.06834996]
[1767095742503,6e-07,87792.0,87787.0,0.06142588]
[1767095743724,6e-07,87792.0,87788.0,0.01139107]
[1767095743892,6e-07,87792.0,87787.0,0.0113912]
[1767095744594,6e-07,87792.0,87788.0,0.01139107]
[1767095744948,6e-07,87792.0,87787.0,0.0113912]
[1767095745699,6e-07,87792.0,87789.0,0.01139094]
[1767095746036,6e-07,87792.0,87788.0,0.0114]
[1767095747325,6e-07,87792.0,87788.0,0.011173]
[1767095748312,6e-07,87792.0,87782.0,0.0683506]
[1767095748313,6e-07,87792.0,87789.0,0.0114]
[1767095748523,6e-07,87792.0,87789.0,0.01085]
[1767095749324,0.01139107,87788.0,87769.0,0.01139354]
[1767095749541,0.01139133,87786.0,87771.0,0.01139328]
[1767095749736,0.0113912,87787.0,87770.0,0.01139341]
[1767095749737,0.01139146,87785.0,87770.0,0.01139341]
[1767095749939,0.01139185,87782.0,87765.0,0.01139406]
[1767095750137,0.01139224,87779.0,87765.0,0.0002284]
[1767095750362,0.01139237,87778.0,87765.0,0.0002284]
[1767095750840,0.0113925,87777.0,87765.0,0.0002284]
[1767095751036,0.01139276,87775.0,87765.0,0.0002284]
[1767095751241,0.01139263,87776.0,87765.0,0.0002284]
[1767095751644,0.0113925,87777.0,87765.0,0.0002284]
[1767095751828,0.01139237,87778.0,87765.0,0.0002284]
[1767095752304,0.0113925,87777.0,87765.0,7.34e-05]
[1767095752497,0.0113925,87777.0,87766.0,0.01144]
[1767095753480,0.01139224,87779.0,87766.0,0.01144]
[1767095753711,0.01139237,87778.0,87766.0,0.01144]
[1767095754432,0.0113925,87777.0,87766.0,0.01144]
[1767095754755,0.01139263,87776.0,87766.0,0.01144]
[1767095755007,0.0113925,87777.0,87766.0,0.01144]
[1767095755184,0.01139263,87776.0,87766.0,0.01144]
[1767095755549,0.0113925,87777.0,87766.0,0.01144]
[1767095757635,0.01139263,87776.0,87766.0,0.01144]
[1767095757843,0.05695783,87785.0,87776.0,0.000549]
[1767095757989,0.01139172,87783.0,87776.0,0.000549]
[1767095758339,0.0114,87783.0,87776.0,0.000549]
[1767095758642,0.0114,87783.0,87771.0,0.01139328]
[1767095758842,0.0114,87783.0,87774.0,0.01139289]
[1767095759430,0.0114,87783.0,87775.0,0.01139276]
[1767095759594,0.02279107,87788.0,87774.0,0.01139289]
[1767095759793,0.02204725,87787.0,87772.0,0.01139315]
[1767095759998,0.01139146,87785.0,87771.0,0.01139328]
[1767095760214,0.01139133,87786.0,87770.0,0.01139341]
[1767095760748,0.0113912,87787.0,87772.0,0.01139315]
[1767095760893,0.02204765,87786.0,87773.0,0.01139302]
[1767095761092,0.0114,87788.0,87774.0,0.01139289]
[1767095761291,0.01065723,87787.0,87774.0,0.01139289]
[1767095761496,0.01065723,87786.0,87774.0,0.01139289]
[1767095761743,0.0114,87788.0,87776.0,0.01139263]
[1767095761926,0.01065723,87787.0,87777.0,0.0113925]
[1767095762119,0.01065723,87786.0,87777.0,0.0113925]
[1767095762391,0.0114,87788.0,87778.0,0.01139237]
[1767095762529,0.010658,87787.0,87778.0,0.01139237]
[1767095762731,0.01139068,87791.0,87777.0,0.0113925]
[1767095762936,0.01065799,87790.0,87777.0,0.0113925]
[1767095763155,0.01065799,87789.0,87777.0,0.0113925]
[1767095763369,0.01065799,87788.0,87777.0,0.0113925]
[1767095763573,0.01065799,87787.0,87776.0,0.01139263]
[1767095763785,0.01139094,87789.0,87775.0,0.07975608]
[1767095764082,0.01065911,87788.0,87775.0,0.07975608]
[1767095764237,0.01065911,87787.0,87775.0,0.07975608]
[1767095764443,0.01139094,87789.0,87775.0,0.02279276]
[1767095764666,0.01066047,87788.0,87775.0,0.02279276]
[1767095764889,0.01066047,87787.0,87775.0,0.02279276]
[1767095765096,0.01139094,87789.0,87775.0,0.02279276]
[1767095765270,0.0106621,87788.0,87775.0,0.02279276]
[1767095765478,0.0106621,87787.0,87775.0,0.02279276]
[1767095765680,0.02279068,87791.0,87777.0,0.0113925]
[1767095765883,0.02205291,87790.0,87776.0,0.01139263]
[1767095766077,0.02205291,87790.0,87777.0,0.0113925]
[1767095766078,0.0106621,87789.0,87777.0,0.0113925]
[1767095766276,0.0106621,87788.0,87777.0,0.0113925]